[Event "Titled Tuesday Blitz December 06 Late 2022"]
[White "Bilan, Danila"]
[Black "Guzman Moneo, Alberto"]
[WhiteFideId "24161918"]
[BlackFideId "2209616"]
[WhiteElo "2182"]
[BlackElo "2157"]
[Result "1-0"]
[Round "06"]
[TimeControl "180+1"]
[Date "2022.12.07"]
[WhiteClock "0:00:03"]
[BlackClock "0:00:25"]

1. d4 {[%clk 0:03:00]}  Nf6 {[%clk 0:02:59]} 2. Nf3 {[%clk 0:03:01]}  c5 {[%clk 0:02:59]} 3. e3 {[%clk 0:03:01]}  cxd4 {[%clk 0:02:57]} 4. exd4 {[%clk 0:03:01]}  d5 {[%clk 0:02:57]} 5. Bd3 {[%clk 0:02:56]}  Bg4 {[%clk 0:02:56]} 6. c3 {[%clk 0:02:52]}  Nc6 {[%clk 0:02:56]} 7. h3 {[%clk 0:02:52]}  Bxf3 {[%clk 0:02:56]} 8. Qxf3 {[%clk 0:02:50]}  e6 {[%clk 0:02:51]} 9. Bg5 {[%clk 0:02:46]}  Be7 {[%clk 0:02:51]} 10. Nd2 {[%clk 0:02:43]}  O-O {[%clk 0:02:51]} 11. O-O {[%clk 0:02:39]}  e5 {[%clk 0:02:49]} 12. dxe5 {[%clk 0:02:01]}  Nxe5 {[%clk 0:02:48]} 13. Qf5 {[%clk 0:02:02]}  Nxd3 {[%clk 0:02:43]} 14. Qxd3 {[%clk 0:02:03]}  h6 {[%clk 0:02:39]} 15. Bxf6 {[%clk 0:01:58]}  Bxf6 {[%clk 0:02:39]} 16. Nf3 {[%clk 0:01:54]}  Qb6 {[%clk 0:02:38]} 17. Qd2 {[%clk 0:01:34]}  Rad8 {[%clk 0:02:31]} 18. Rad1 {[%clk 0:01:33]}  Rd6 {[%clk 0:02:26]} 19. Rfe1 {[%clk 0:01:19]}  Rfd8 {[%clk 0:02:25]} 20. Nd4 {[%clk 0:00:44]}  Bxd4 {[%clk 0:02:22]} 21. cxd4 {[%clk 0:00:38]}  Re6 {[%clk 0:02:17]} 22. Rxe6 {[%clk 0:00:35]}  Qxe6 {[%clk 0:02:16]} 23. Re1 {[%clk 0:00:21]}  Qc6 {[%clk 0:02:12]} 24. Re7 {[%clk 0:00:18]}  Re8 {[%clk 0:01:47]} 25. Rxe8+ {[%clk 0:00:13]}  Qxe8 {[%clk 0:01:48]} 26. Qa5 {[%clk 0:00:13]}  Qe4 {[%clk 0:01:32]} 27. Qxa7 {[%clk 0:00:09]}  Qe1+ {[%clk 0:01:27]} 28. Kh2 {[%clk 0:00:10]}  Qxf2 {[%clk 0:01:27]} 29. Qb8+ {[%clk 0:00:08]}  Kh7 {[%clk 0:01:27]} 30. Qxb7 {[%clk 0:00:08]}  Qf4+ {[%clk 0:01:20]} 31. Kg1 {[%clk 0:00:08]}  Qxd4+ {[%clk 0:01:20]} 32. Kh2 {[%clk 0:00:08]}  Qf4+ {[%clk 0:01:17]} 33. Kg1 {[%clk 0:00:09]}  d4 {[%clk 0:01:17]} 34. Qb3 {[%clk 0:00:07]}  f5 {[%clk 0:01:08]} 35. Qc2 {[%clk 0:00:03]}  Qe5 {[%clk 0:00:59]} 36. a4 {[%clk 0:00:03]}  h5 {[%clk 0:00:57]} 37. b4 {[%clk 0:00:03]}  h4 {[%clk 0:00:57]} 38. Qf2 {[%clk 0:00:02]}  g5 {[%clk 0:00:55]} 39. Qd2 {[%clk 0:00:01]}  f4 {[%clk 0:00:53]} 40. b5 {[%clk 0:00:02]}  Kh6 {[%clk 0:00:43]} 41. Qd3 {[%clk 0:00:02]}  Qe1+ {[%clk 0:00:38]} 42. Kh2 {[%clk 0:00:02]}  Qg3+ {[%clk 0:00:36]} 43. Qxg3 {[%clk 0:00:03]}  hxg3+ {[%clk 0:00:32]} 44. Kg1 {[%clk 0:00:04]}  g4 {[%clk 0:00:30]} 45. b6 {[%clk 0:00:04]}  gxh3 {[%clk 0:00:29]} 46. b7 {[%clk 0:00:04]}  f3 {[%clk 0:00:25]} 47. gxf3 {[%clk 0:00:02]}  d3 {[%clk 0:00:24]} 48. b8=Q {[%clk 0:00:02]}  d2 {[%clk 0:00:24]} 49. Qd6+ {[%clk 0:00:02]}  Kh5 {[%clk 0:00:25]} 50. Qxd2 {[%clk 0:00:03]}  Kh4 {[%clk 0:00:25]} 51. Qf4+ {[%clk 0:00:03]} 1-0


[Site "https://www.chess.com"]

[Event "Titled Tuesday Blitz December 06 Late 2022"]
[White "Bongo Akanga Ndjila, Barthelemy"]
[Black "Tirelli, Mauro"]
[WhiteFideId "10609431"]
[BlackFideId "845353"]
[WhiteElo "1768"]
[BlackElo "2152"]
[Result "1/2-1/2"]
[Round "06"]
[TimeControl "180+1"]
[Date "2022.12.07"]
[WhiteClock "0:01:02"]
[BlackClock "0:01:42"]

1. d4 {[%clk 0:02:51]}  d5 {[%clk 0:02:58]} 2. c4 {[%clk 0:02:51]}  c6 {[%clk 0:02:58]} 3. Nc3 {[%clk 0:02:50]}  e6 {[%clk 0:02:58]} 4. Nf3 {[%clk 0:02:50]}  f5 {[%clk 0:02:56]} 5. g3 {[%clk 0:02:48]}  Nf6 {[%clk 0:02:56]} 6. Bg2 {[%clk 0:02:47]}  Bd6 {[%clk 0:02:56]} 7. O-O {[%clk 0:02:46]}  O-O {[%clk 0:02:56]} 8. b3 {[%clk 0:02:46]}  Qe7 {[%clk 0:02:55]} 9. Ne5 {[%clk 0:02:42]}  Nbd7 {[%clk 0:02:54]} 10. f4 {[%clk 0:02:41]}  Ne4 {[%clk 0:02:52]} 11. Bb2 {[%clk 0:02:40]}  Nxe5 {[%clk 0:02:45]} 12. fxe5 {[%clk 0:02:37]}  Bc7 {[%clk 0:02:42]} 13. e3 {[%clk 0:02:28]}  Bd7 {[%clk 0:02:41]} 14. Qe2 {[%clk 0:02:15]}  a5 {[%clk 0:02:38]} 15. Rad1 {[%clk 0:01:55]}  Be8 {[%clk 0:02:35]} 16. g4 {[%clk 0:01:47]}  Bg6 {[%clk 0:02:35]} 17. gxf5 {[%clk 0:01:46]}  Bxf5 {[%clk 0:02:33]} 18. Kh1 {[%clk 0:01:44]}  Rf7 {[%clk 0:02:29]} 19. Nxe4 {[%clk 0:01:34]}  Bxe4 {[%clk 0:02:28]} 20. Bxe4 {[%clk 0:01:33]}  dxe4 {[%clk 0:02:28]} 21. Rxf7 {[%clk 0:01:34]}  Qxf7 {[%clk 0:02:28]} 22. Rf1 {[%clk 0:01:33]}  Qg6 {[%clk 0:02:27]} 23. Rg1 {[%clk 0:01:31]}  Qf5 {[%clk 0:02:24]} 24. Rf1 {[%clk 0:01:31]}  Qg5 {[%clk 0:02:23]} 25. Rg1 {[%clk 0:01:31]}  Qh4 {[%clk 0:02:14]} 26. Rg4 {[%clk 0:01:28]}  Qh3 {[%clk 0:02:09]} 27. Rxe4 {[%clk 0:01:24]}  Rf8 {[%clk 0:02:07]} 28. Rf4 {[%clk 0:01:24]}  Bd8 {[%clk 0:01:52]} 29. Rxf8+ {[%clk 0:01:23]}  Kxf8 {[%clk 0:01:52]} 30. Ba3+ {[%clk 0:01:23]}  Ke8 {[%clk 0:01:51]} 31. Qf2 {[%clk 0:01:21]}  Kd7 {[%clk 0:01:46]} 32. Kg1 {[%clk 0:01:10]}  Qg4+ {[%clk 0:01:45]} 33. Qg2 {[%clk 0:01:03]}  Qd1+ {[%clk 0:01:45]} 34. Qf1 {[%clk 0:01:03]}  Qg4+ {[%clk 0:01:43]} 35. Qg2 {[%clk 0:01:03]}  Qd1+ {[%clk 0:01:43]} 36. Qf1 {[%clk 0:01:03]}  Qg4+ {[%clk 0:01:42]} 37. Qg2 {[%clk 0:01:02]} 1/2-1/2


[Site "https://www.chess.com"]

[Event "Titled Tuesday Blitz December 06 Late 2022"]
[White "Bortnyk, Olexandr"]
[Black "Kravtsiv, Martyn"]
[WhiteFideId "14120828"]
[BlackFideId "14113147"]
[WhiteElo "2723"]
[BlackElo "2695"]
[Result "1-0"]
[Round "06"]
[TimeControl "180+1"]
[Date "2022.12.06"]
[WhiteClock "0:02:10"]
[BlackClock "0:00:08"]

1. d4 {[%clk 0:03:00]}  d5 {[%clk 0:02:59]} 2. Nc3 {[%clk 0:03:01]}  Nf6 {[%clk 0:02:59]} 3. Bf4 {[%clk 0:03:02]}  e6 {[%clk 0:03:00]} 4. Nb5 {[%clk 0:03:02]}  Na6 {[%clk 0:02:59]} 5. e3 {[%clk 0:03:02]}  Be7 {[%clk 0:02:59]} 6. Nf3 {[%clk 0:03:02]}  O-O {[%clk 0:02:58]} 7. Ne5 {[%clk 0:03:03]}  Ne4 {[%clk 0:02:58]} 8. f3 {[%clk 0:03:04]}  Nd6 {[%clk 0:02:46]} 9. Nxd6 {[%clk 0:03:04]}  cxd6 {[%clk 0:02:42]} 10. Nd3 {[%clk 0:03:04]}  f6 {[%clk 0:02:37]} 11. Be2 {[%clk 0:03:04]}  e5 {[%clk 0:02:37]} 12. Bg3 {[%clk 0:03:05]}  Nc7 {[%clk 0:02:26]} 13. O-O {[%clk 0:03:05]}  b6 {[%clk 0:02:21]} 14. c3 {[%clk 0:03:05]}  Bb7 {[%clk 0:02:18]} 15. Qb3 {[%clk 0:03:05]}  Kh8 {[%clk 0:02:17]} 16. a4 {[%clk 0:03:03]}  e4 {[%clk 0:02:07]} 17. Nf4 {[%clk 0:03:00]}  g5 {[%clk 0:01:33]} 18. Nh5 {[%clk 0:03:01]}  Qe8 {[%clk 0:01:21]} 19. f4 {[%clk 0:02:59]}  Bc6 {[%clk 0:01:14]} 20. a5 {[%clk 0:02:58]}  b5 {[%clk 0:01:14]} 21. a6 {[%clk 0:02:55]}  Rb8 {[%clk 0:00:45]} 22. fxg5 {[%clk 0:02:46]}  fxg5 {[%clk 0:00:41]} 23. Rxf8+ {[%clk 0:02:47]}  Qxf8 {[%clk 0:00:38]} 24. Rf1 {[%clk 0:02:48]}  Qh6 {[%clk 0:00:38]} 25. Qb4 {[%clk 0:02:36]}  Nxa6 {[%clk 0:00:32]} 26. Qa3 {[%clk 0:02:28]}  Rb6 {[%clk 0:00:32]} 27. Be5+ {[%clk 0:02:16]}  Kg8 {[%clk 0:00:27]} 28. Nf6+ {[%clk 0:02:16]}  Bxf6 {[%clk 0:00:20]} 29. Rxf6 {[%clk 0:02:17]}  b4 {[%clk 0:00:11]} 30. Qa1 {[%clk 0:02:14]}  Qg7 {[%clk 0:00:09]} 31. Rxd6 {[%clk 0:02:11]}  Qb7 {[%clk 0:00:09]} 32. Rd8+ {[%clk 0:02:09]}  Kf7 {[%clk 0:00:08]} 33. Qf1+ {[%clk 0:02:10]} 1-0


[Site "https://www.chess.com"]

[Event "Titled Tuesday Blitz December 06 Late 2022"]
[White "Christiansen, Johan-Sebastian"]
[Black "Godzwon, Iwo"]
[WhiteFideId "1512668"]
[BlackFideId "21802483"]
[WhiteElo "2501"]
[BlackElo "2284"]
[Result "1-0"]
[Round "06"]
[TimeControl "180+1"]
[Date "2022.12.06"]
[WhiteClock "0:00:56"]
[BlackClock "0:01:30"]

1. e4 {[%clk 0:03:00]}  c5 {[%clk 0:03:00]} 2. Nf3 {[%clk 0:03:00]}  e6 {[%clk 0:02:56]} 3. g3 {[%clk 0:02:59]}  Nc6 {[%clk 0:02:56]} 4. d4 {[%clk 0:02:59]}  cxd4 {[%clk 0:02:56]} 5. Nxd4 {[%clk 0:03:00]}  Qc7 {[%clk 0:02:56]} 6. Bg2 {[%clk 0:02:57]}  Nf6 {[%clk 0:02:56]} 7. Nb5 {[%clk 0:02:54]}  Qb8 {[%clk 0:02:55]} 8. Bf4 {[%clk 0:02:53]}  e5 {[%clk 0:02:54]} 9. Bg5 {[%clk 0:02:53]}  a6 {[%clk 0:02:48]} 10. N5c3 {[%clk 0:02:51]}  Be7 {[%clk 0:02:45]} 11. Bxf6 {[%clk 0:02:49]}  Bxf6 {[%clk 0:02:46]} 12. Nd5 {[%clk 0:02:49]}  Bd8 {[%clk 0:02:45]} 13. O-O {[%clk 0:02:48]}  d6 {[%clk 0:02:46]} 14. Nd2 {[%clk 0:02:32]}  O-O {[%clk 0:02:45]} 15. Nc4 {[%clk 0:02:32]}  b5 {[%clk 0:02:42]} 16. Nce3 {[%clk 0:02:29]}  Be6 {[%clk 0:02:41]} 17. c3 {[%clk 0:02:24]}  Ne7 {[%clk 0:02:24]} 18. Qd2 {[%clk 0:02:09]}  Nxd5 {[%clk 0:02:22]} 19. Nxd5 {[%clk 0:02:05]}  Bb6 {[%clk 0:02:20]} 20. a4 {[%clk 0:02:02]}  bxa4 {[%clk 0:02:11]} 21. Rxa4 {[%clk 0:02:01]}  Qb7 {[%clk 0:02:11]} 22. Rd1 {[%clk 0:01:57]}  Rfd8 {[%clk 0:02:11]} 23. h4 {[%clk 0:01:51]}  a5 {[%clk 0:02:10]} 24. h5 {[%clk 0:01:50]}  h6 {[%clk 0:02:09]} 25. Rda1 {[%clk 0:01:35]}  Rdb8 {[%clk 0:01:57]} 26. Nxb6 {[%clk 0:01:30]}  Qxb6 {[%clk 0:01:58]} 27. b4 {[%clk 0:01:30]}  Bg4 {[%clk 0:01:47]} 28. Rxa5 {[%clk 0:01:25]}  Rxa5 {[%clk 0:01:47]} 29. bxa5 {[%clk 0:01:25]}  Qc6 {[%clk 0:01:44]} 30. a6 {[%clk 0:01:23]}  Bxh5 {[%clk 0:01:41]} 31. a7 {[%clk 0:01:21]}  Ra8 {[%clk 0:01:40]} 32. Qb2 {[%clk 0:01:20]}  Bg6 {[%clk 0:01:38]} 33. Qb8+ {[%clk 0:01:11]}  Kh7 {[%clk 0:01:38]} 34. Kh2 {[%clk 0:01:04]}  Bxe4 {[%clk 0:01:36]} 35. Qxa8 {[%clk 0:01:03]}  Qxa8 {[%clk 0:01:29]} 36. Bxe4+ {[%clk 0:01:03]}  Qxe4 {[%clk 0:01:30]} 37. a8=Q {[%clk 0:01:03]}  Qe2 {[%clk 0:01:31]} 38. Qg2 {[%clk 0:01:01]}  e4 {[%clk 0:01:30]} 39. Kg1 {[%clk 0:00:58]}  f5 {[%clk 0:01:31]} 40. Qf1 {[%clk 0:00:57]}  Qb2 {[%clk 0:01:30]} 41. Qc1 {[%clk 0:00:56]}  Qe2 {[%clk 0:01:30]} 42. Qe3 {[%clk 0:00:56]}  Qb5 {[%clk 0:01:30]} 43. Rd1 {[%clk 0:00:56]} 1-0


[Site "https://www.chess.com"]

[Event "Titled Tuesday Blitz December 06 Late 2022"]
[White "D`Arruda, Ricardo D."]
[Black "Fernandez De La Vara, Arnaldo"]
[WhiteFideId "100692"]
[BlackFideId "3518388"]
[WhiteElo "2466"]
[BlackElo "2387"]
[Result "0-1"]
[Round "06"]
[TimeControl "180+1"]
[Date "2022.12.07"]
[WhiteClock "0:00:07"]
[BlackClock "0:00:03"]

1. d4 {[%clk 0:02:53]}  c5 {[%clk 0:03:00]} 2. d5 {[%clk 0:02:52]}  Nf6 {[%clk 0:03:01]} 3. Nc3 {[%clk 0:02:51]}  a6 {[%clk 0:03:01]} 4. e4 {[%clk 0:02:50]}  d6 {[%clk 0:03:02]} 5. f4 {[%clk 0:02:49]}  b5 {[%clk 0:03:01]} 6. e5 {[%clk 0:02:48]}  b4 {[%clk 0:03:02]} 7. exf6 {[%clk 0:02:37]}  bxc3 {[%clk 0:03:03]} 8. bxc3 {[%clk 0:02:31]}  gxf6 {[%clk 0:02:59]} 9. Nf3 {[%clk 0:02:28]}  f5 {[%clk 0:02:56]} 10. c4 {[%clk 0:02:22]}  Bg7 {[%clk 0:02:53]} 11. Rb1 {[%clk 0:02:22]}  Nd7 {[%clk 0:02:50]} 12. Bd3 {[%clk 0:02:20]}  Nb6 {[%clk 0:02:47]} 13. Bd2 {[%clk 0:02:06]}  Na4 {[%clk 0:02:43]} 14. O-O {[%clk 0:01:56]}  Nc3 {[%clk 0:02:34]} 15. Bxc3 {[%clk 0:01:56]}  Bxc3 {[%clk 0:02:35]} 16. Qe2 {[%clk 0:01:46]}  O-O {[%clk 0:02:22]} 17. Nh4 {[%clk 0:01:45]}  e6 {[%clk 0:02:21]} 18. Qh5 {[%clk 0:01:43]}  Bf6 {[%clk 0:02:03]} 19. Rf3 {[%clk 0:01:28]}  Bxh4 {[%clk 0:01:57]} 20. Rh3 {[%clk 0:01:28]}  Qf6 {[%clk 0:01:58]} 21. Rxh4 {[%clk 0:01:23]}  Qg6 {[%clk 0:01:58]} 22. Qf3 {[%clk 0:01:22]}  Bd7 {[%clk 0:01:39]} 23. Rh3 {[%clk 0:01:21]}  Kh8 {[%clk 0:01:37]} 24. Rb7 {[%clk 0:01:15]}  Rfd8 {[%clk 0:01:31]} 25. dxe6 {[%clk 0:00:58]}  Bxe6 {[%clk 0:01:32]} 26. Qe3 {[%clk 0:00:40]}  Rab8 {[%clk 0:01:19]} 27. Rxb8 {[%clk 0:00:39]}  Rxb8 {[%clk 0:01:20]} 28. Qd2 {[%clk 0:00:32]}  Qf6 {[%clk 0:01:05]} 29. Kf2 {[%clk 0:00:30]}  Qd4+ {[%clk 0:00:59]} 30. Ke2 {[%clk 0:00:25]}  Bxc4 {[%clk 0:00:41]} 31. Bxc4 {[%clk 0:00:21]}  Re8+ {[%clk 0:00:41]} 32. Re3 {[%clk 0:00:20]}  Qxc4+ {[%clk 0:00:36]} 33. Kf3 {[%clk 0:00:19]}  Qf1+ {[%clk 0:00:27]} 34. Kg3 {[%clk 0:00:18]}  Rg8+ {[%clk 0:00:27]} 35. Kh3 {[%clk 0:00:17]}  Rg6 {[%clk 0:00:05]} 36. Qc3+ {[%clk 0:00:15]}  f6 {[%clk 0:00:05]} 37. Re8+ {[%clk 0:00:14]}  Kg7 {[%clk 0:00:06]} 38. Qf3 {[%clk 0:00:12]}  Qxf3+ {[%clk 0:00:03]} 39. gxf3 {[%clk 0:00:13]}  Kf7 {[%clk 0:00:01]} 40. Ra8 {[%clk 0:00:12]}  Ke6 {[%clk 0:00:01]} 41. Rxa6 {[%clk 0:00:12]}  Rg1 {[%clk 0:00:01]} 42. a4 {[%clk 0:00:12]}  Rc1 {[%clk 0:00:02]} 43. a5 {[%clk 0:00:11]}  Rxc2 {[%clk 0:00:03]} 44. Ra8 {[%clk 0:00:12]}  Ra2 {[%clk 0:00:03]} 45. a6 {[%clk 0:00:11]}  Kd5 {[%clk 0:00:04]} 46. Kg3 {[%clk 0:00:10]}  c4 {[%clk 0:00:05]} 47. a7 {[%clk 0:00:08]}  Kd4 {[%clk 0:00:02]} 48. Rd8 {[%clk 0:00:08]}  Rxa7 {[%clk 0:00:02]} 49. Rxd6+ {[%clk 0:00:08]}  Kc5 {[%clk 0:00:02]} 50. Rxf6 {[%clk 0:00:08]}  c3 {[%clk 0:00:03]} 51. Rxf5+ {[%clk 0:00:08]}  Kc4 {[%clk 0:00:04]} 52. Rf8 {[%clk 0:00:07]}  Rc7 {[%clk 0:00:04]} 53. Re8 {[%clk 0:00:07]}  c2 {[%clk 0:00:04]} 54. Re1 {[%clk 0:00:07]}  Kd3 {[%clk 0:00:04]} 55. f5 {[%clk 0:00:08]}  c1=Q {[%clk 0:00:03]} 56. Rxc1 {[%clk 0:00:08]}  Rxc1 {[%clk 0:00:03]} 57. Kf4 {[%clk 0:00:07]}  Rh1 {[%clk 0:00:03]} 0-1


[Site "https://www.chess.com"]

[Event "Titled Tuesday Blitz December 06 Late 2022"]
[White "Dardha, Daniel"]
[Black "Maksimovic, Bojan"]
[WhiteFideId "240990"]
[BlackFideId "14408120"]
[WhiteElo "2528"]
[BlackElo "2462"]
[Result "1-0"]
[Round "06"]
[TimeControl "180+1"]
[Date "2022.12.06"]
[WhiteClock "0:01:11"]
[BlackClock "0:00:27"]

1. d4 {[%clk 0:03:00]}  Nf6 {[%clk 0:02:58]} 2. Bg5 {[%clk 0:03:00]}  g6 {[%clk 0:02:58]} 3. Bxf6 {[%clk 0:03:00]}  exf6 {[%clk 0:02:59]} 4. e3 {[%clk 0:03:01]}  d5 {[%clk 0:02:59]} 5. g3 {[%clk 0:03:01]}  h5 {[%clk 0:02:56]} 6. Nf3 {[%clk 0:02:59]}  c6 {[%clk 0:02:53]} 7. Bg2 {[%clk 0:02:59]}  Bd6 {[%clk 0:02:44]} 8. Nbd2 {[%clk 0:02:58]}  Be6 {[%clk 0:02:41]} 9. Qe2 {[%clk 0:02:57]}  g5 {[%clk 0:02:28]} 10. h4 {[%clk 0:02:52]}  Nd7 {[%clk 0:02:19]} 11. O-O {[%clk 0:02:49]}  g4 {[%clk 0:01:52]} 12. Ne1 {[%clk 0:02:48]}  f5 {[%clk 0:01:49]} 13. c4 {[%clk 0:02:48]}  Nf6 {[%clk 0:01:48]} 14. cxd5 {[%clk 0:02:45]}  Nxd5 {[%clk 0:01:48]} 15. Nd3 {[%clk 0:02:44]}  O-O {[%clk 0:01:48]} 16. Nc4 {[%clk 0:02:26]}  Bc7 {[%clk 0:01:48]} 17. Nc5 {[%clk 0:02:26]}  Bc8 {[%clk 0:01:43]} 18. Rac1 {[%clk 0:02:25]}  Re8 {[%clk 0:01:32]} 19. Qc2 {[%clk 0:02:21]}  b6 {[%clk 0:01:26]} 20. Nd3 {[%clk 0:02:20]}  Ba6 {[%clk 0:01:13]} 21. Rfe1 {[%clk 0:02:16]}  Rc8 {[%clk 0:00:58]} 22. Nde5 {[%clk 0:02:14]}  Qf6 {[%clk 0:00:37]} 23. a3 {[%clk 0:01:56]}  Bxc4 {[%clk 0:00:36]} 24. Nxc4 {[%clk 0:01:53]}  f4 {[%clk 0:00:33]} 25. exf4 {[%clk 0:01:48]}  Qxd4 {[%clk 0:00:33]} 26. Red1 {[%clk 0:01:42]}  Qf6 {[%clk 0:00:06]} 27. Bxd5 {[%clk 0:01:30]}  cxd5 {[%clk 0:00:07]} 28. Rxd5 {[%clk 0:01:30]}  b5 {[%clk 0:00:08]} 29. Ne3 {[%clk 0:01:09]}  Kg7 {[%clk 0:00:01]} 30. Rg5+ {[%clk 0:01:07]}  Kf8 {[%clk 0:00:02]} 31. Nd5 {[%clk 0:01:04]}  Qd6 {[%clk 0:00:01]} 32. Nxc7 {[%clk 0:01:04]}  Re7 {[%clk 0:00:02]} 33. Ne6+ {[%clk 0:01:01]}  Qxe6 {[%clk 0:00:02]} 34. Qxc8+ {[%clk 0:01:01]}  Re8 {[%clk 0:00:03]} 35. Qxe6 {[%clk 0:01:01]}  Rxe6 {[%clk 0:00:04]} 36. Rxb5 {[%clk 0:01:01]}  Ke7 {[%clk 0:00:05]} 37. Re5 {[%clk 0:01:01]}  f5 {[%clk 0:00:05]} 38. Rxe6+ {[%clk 0:01:01]}  Kxe6 {[%clk 0:00:06]} 39. Rc6+ {[%clk 0:01:01]}  Kd5 {[%clk 0:00:06]} 40. Ra6 {[%clk 0:01:02]}  Ke4 {[%clk 0:00:07]} 41. Rxa7 {[%clk 0:01:03]}  Kf3 {[%clk 0:00:08]} 42. Rh7 {[%clk 0:01:02]}  Ke2 {[%clk 0:00:08]} 43. Rxh5 {[%clk 0:01:02]}  Kf3 {[%clk 0:00:09]} 44. Rg5 {[%clk 0:01:02]}  Ke2 {[%clk 0:00:10]} 45. Rxg4 {[%clk 0:01:03]}  Kf3 {[%clk 0:00:11]} 46. Rg5 {[%clk 0:01:02]}  Ke2 {[%clk 0:00:12]} 47. h5 {[%clk 0:01:03]}  Kf3 {[%clk 0:00:12]} 48. h6 {[%clk 0:01:04]}  Ke2 {[%clk 0:00:13]} 49. h7 {[%clk 0:01:05]}  Kf3 {[%clk 0:00:14]} 50. h8=N {[%clk 0:01:06]}  Ke2 {[%clk 0:00:15]} 51. Rg6 {[%clk 0:01:06]}  Kf3 {[%clk 0:00:16]} 52. a4 {[%clk 0:01:06]}  Ke2 {[%clk 0:00:17]} 53. a5 {[%clk 0:01:07]}  Kf3 {[%clk 0:00:18]} 54. a6 {[%clk 0:01:08]}  Ke2 {[%clk 0:00:19]} 55. a7 {[%clk 0:01:09]}  Kf3 {[%clk 0:00:19]} 56. a8=Q+ {[%clk 0:01:09]}  Ke2 {[%clk 0:00:20]} 57. Qf3+ {[%clk 0:01:09]}  Kxf3 {[%clk 0:00:20]} 58. Re6 {[%clk 0:01:09]}  Kg4 {[%clk 0:00:21]} 59. Kg2 {[%clk 0:01:09]}  Kh5 {[%clk 0:00:21]} 60. Nf7 {[%clk 0:01:09]}  Kg4 {[%clk 0:00:22]} 61. Ne5+ {[%clk 0:01:08]}  Kh5 {[%clk 0:00:23]} 62. Rh6+ {[%clk 0:01:08]}  Kxh6 {[%clk 0:00:24]} 63. b4 {[%clk 0:01:09]}  Kg7 {[%clk 0:00:25]} 64. b5 {[%clk 0:01:09]}  Kf6 {[%clk 0:00:25]} 65. b6 {[%clk 0:01:10]}  Kg7 {[%clk 0:00:26]} 66. b7 {[%clk 0:01:11]}  Kh6 {[%clk 0:00:27]} 67. b8=Q {[%clk 0:01:11]}  Kh5 {[%clk 0:00:27]} 68. Qh8# {[%clk 0:01:11]} 1-0


[Site "https://www.chess.com"]

[Event "Titled Tuesday Blitz December 06 Late 2022"]
[White "Domingo Nunez, Ruben"]
[Black "Quesada Perez, Yuniesky"]
[WhiteFideId "22245570"]
[BlackFideId "3504409"]
[WhiteElo "2406"]
[BlackElo "2600"]
[Result "0-1"]
[Round "06"]
[TimeControl "180+1"]
[Date "2022.12.06"]
[WhiteClock "0:00:34"]
[BlackClock "0:00:39"]

1. d4 {[%clk 0:02:54]}  d5 {[%clk 0:02:59]} 2. g3 {[%clk 0:02:55]}  Nf6 {[%clk 0:02:59]} 3. Bg2 {[%clk 0:02:55]}  Bf5 {[%clk 0:02:59]} 4. Nf3 {[%clk 0:02:56]}  e6 {[%clk 0:02:59]} 5. O-O {[%clk 0:02:56]}  c6 {[%clk 0:02:57]} 6. Re1 {[%clk 0:02:48]}  Nbd7 {[%clk 0:02:55]} 7. c3 {[%clk 0:02:49]}  Bd6 {[%clk 0:02:53]} 8. Nh4 {[%clk 0:02:48]}  O-O {[%clk 0:02:52]} 9. Nd2 {[%clk 0:02:44]}  Re8 {[%clk 0:02:50]} 10. f3 {[%clk 0:02:27]}  Bg6 {[%clk 0:02:43]} 11. Nxg6 {[%clk 0:02:27]}  hxg6 {[%clk 0:02:42]} 12. f4 {[%clk 0:02:27]}  c5 {[%clk 0:02:41]} 13. e3 {[%clk 0:02:26]}  b5 {[%clk 0:02:38]} 14. a4 {[%clk 0:02:25]}  a6 {[%clk 0:02:35]} 15. b3 {[%clk 0:02:06]}  Qb6 {[%clk 0:02:34]} 16. Kh1 {[%clk 0:02:02]}  b4 {[%clk 0:02:33]} 17. a5 {[%clk 0:01:58]}  Qa7 {[%clk 0:02:29]} 18. c4 {[%clk 0:01:58]}  cxd4 {[%clk 0:02:28]} 19. Nf3 {[%clk 0:01:46]}  dxe3 {[%clk 0:02:13]} 20. Bxe3 {[%clk 0:01:47]}  Bc5 {[%clk 0:02:13]} 21. Bxc5 {[%clk 0:01:47]}  Nxc5 {[%clk 0:02:11]} 22. Ng5 {[%clk 0:01:45]}  Rad8 {[%clk 0:02:08]} 23. Qd4 {[%clk 0:01:42]}  Qc7 {[%clk 0:02:01]} 24. cxd5 {[%clk 0:01:22]}  Nxb3 {[%clk 0:01:59]} 25. Qxb4 {[%clk 0:01:22]}  Nxa1 {[%clk 0:01:41]} 26. dxe6 {[%clk 0:01:22]}  Nc2 {[%clk 0:01:40]} 27. Qb6 {[%clk 0:01:19]}  Qxb6 {[%clk 0:00:48]} 28. exf7+ {[%clk 0:01:17]}  Kf8 {[%clk 0:00:49]} 29. Rxe8+ {[%clk 0:00:37]}  Nxe8 {[%clk 0:00:44]} 30. axb6 {[%clk 0:00:32]}  Rd1+ {[%clk 0:00:42]} 31. Bf1 {[%clk 0:00:33]}  Rxf1+ {[%clk 0:00:42]} 32. Kg2 {[%clk 0:00:33]}  Ne3+ {[%clk 0:00:43]} 33. Kh3 {[%clk 0:00:34]}  Nd6 {[%clk 0:00:39]} 0-1


[Site "https://www.chess.com"]

[Event "Titled Tuesday Blitz December 06 Late 2022"]
[White "Erzhanov, Arman"]
[Black "Hernandez Jimenez, Alexander Andres"]
[WhiteFideId "4138821"]
[BlackFideId "3900452"]
[WhiteElo "2176"]
[BlackElo "2098"]
[Result "1-0"]
[Round "06"]
[TimeControl "180+1"]
[Date "2022.12.07"]
[WhiteClock "0:02:15"]
[BlackClock "0:01:13"]

1. e4 {[%clk 0:03:00]}  c5 {[%clk 0:02:58]} 2. Nf3 {[%clk 0:03:01]}  d6 {[%clk 0:02:58]} 3. d4 {[%clk 0:02:59]}  cxd4 {[%clk 0:02:57]} 4. Qxd4 {[%clk 0:03:00]}  Nc6 {[%clk 0:02:56]} 5. Bb5 {[%clk 0:03:00]}  Bd7 {[%clk 0:02:57]} 6. Bxc6 {[%clk 0:03:01]}  Bxc6 {[%clk 0:02:55]} 7. Nc3 {[%clk 0:03:01]}  Nf6 {[%clk 0:02:54]} 8. Bg5 {[%clk 0:03:02]}  e6 {[%clk 0:02:50]} 9. O-O-O {[%clk 0:03:02]}  Be7 {[%clk 0:02:49]} 10. Qd3 {[%clk 0:03:03]}  Qc7 {[%clk 0:02:48]} 11. Nd4 {[%clk 0:03:02]}  Rc8 {[%clk 0:02:37]} 12. f4 {[%clk 0:03:02]}  a6 {[%clk 0:02:23]} 13. f5 {[%clk 0:02:57]}  e5 {[%clk 0:02:06]} 14. Nxc6 {[%clk 0:02:57]}  Qxc6 {[%clk 0:02:05]} 15. Bxf6 {[%clk 0:02:57]}  Bxf6 {[%clk 0:02:02]} 16. Nd5 {[%clk 0:02:56]}  Bg5+ {[%clk 0:02:01]} 17. Kb1 {[%clk 0:02:56]}  Qc4 {[%clk 0:01:47]} 18. h4 {[%clk 0:02:45]}  Bh6 {[%clk 0:01:40]} 19. g4 {[%clk 0:02:44]}  f6 {[%clk 0:01:29]} 20. Rhg1 {[%clk 0:02:44]}  Qxd3 {[%clk 0:01:24]} 21. Rxd3 {[%clk 0:02:44]}  Bf4 {[%clk 0:01:25]} 22. Nxf4 {[%clk 0:02:37]}  exf4 {[%clk 0:01:25]} 23. Rxd6 {[%clk 0:02:37]}  Rc4 {[%clk 0:01:21]} 24. Re6+ {[%clk 0:02:32]}  Kf7 {[%clk 0:01:15]} 25. Rd1 {[%clk 0:02:27]}  Rc7 {[%clk 0:01:15]} 26. Kc1 {[%clk 0:02:15]}  h5 {[%clk 0:01:14]} 27. g5 {[%clk 0:02:14]}  fxg5 {[%clk 0:01:13]} 28. hxg5 {[%clk 0:02:14]}  h4 {[%clk 0:01:13]} 29. g6+ {[%clk 0:02:15]} 1-0


[Site "https://www.chess.com"]